Cogmind - Beta 14 @@@ ROGUE MODE // 2024.11.29 @ 19:01:01 Player: Amberulez Result: Destroyed by P-60 Hacker with Shock Rifle Performance ------------- Evolutions (2) 1000 Regions Visited (6) 1200 Robots Destroyed (116) 580 Value Destroyed (3200) 3200 Prototype IDs (3) 60 Alien Tech Used (0) 0 Bonus (5) 5 TOTAL SCORE: 6045 Bonus ------- High Alert Combat Kills 51 Entered Garrisons 200 Friendly Fire -246 Cogmind --------- Core Integrity 0/550 Matter 15/300 Energy 211/275 System Corruption 4% Temperature Cool (0) Movement Hovering (60) Location -8/Garrison Parts ------- > --- POWER (1) -------- Deuterium Engine > --- PROPULSION (2) --- Airjet > --- UTILITY (6) ------ Weight Redist. System Machine Analyzer Advanced Visual Processing Unit Improved Sensor Array Improved Signal Interpreter > --- WEAPON (2) ------- Katana > --- INVENTORY (5) ---- (None) Peak State ------------ > --- POWER ------------ Light Nuclear Core > --- PROPULSION ------- Airjet Airjet > --- UTILITY ---------- Improved Heat Sink Huge Storage Unit Improved Targeting Computer Hardened Heavy Armor Plating Layered Light Armor Plating > --- WEAPON ----------- Heavy Ion Cannon Minigun > --- INVENTORY -------- Deuterium Engine Deuterium Engine Deuterium Engine Deuterium Engine Airjet Airjet Airjet Airjet Airjet Heat Sink Medium Matter Pod Weight Redist. System Machine Analyzer Visual Processing Unit Improved Sensor Array Signal Interpreter Improved Signal Interpreter Improved EM Shotgun Heavy Ion Cannon Heavy Ion Cannon Rocket Launcher Improved Grenade Launcher Improved Grenade Launcher Katana Axe [Rating: 40] Favorites ----------- Power Light Nuclear Core Engine Deuterium Engine Power Core Light Nuclear Core Propulsion Light Treads Treads Light Treads Hover Unit Airjet Utility Huge Storage Unit Device Improved Heat Sink Storage Huge Storage Unit Processor Improved Targeting Computer Protection Hardened Medium Armor Plating Weapon Heavy Particle Cannon Energy Gun Particle Gun Energy Cannon Heavy Particle Cannon Ballistic Gun Heavy Assault Rifle Launcher Improved Grenade Launcher Slashing Weapon Katana Build | -11 -10 -10 -9 -9 -8 -8 ------- Run | Yrd Mat Min Mat Min Mat Gar Slots Evolved 4 | . . . 2 . 2 . Power . | . . . . . . . Propulsion . | . . . . . . . Utility 4 | . . . 2 . 2 . Weapon . | . . . . . . . Parts Attached 120 | 6 9 12 35 4 47 7 Power 11 | 1 1 2 3 . 3 1 Engine 5 | 1 . . 2 . 1 1 Core 6 | . 1 2 1 . 2 . Reactor . | . . . . . . . Propulsion 22 | 2 4 . 7 . 5 4 Treads 14 | 2 4 . 7 . 1 . Leg . | . . . . . . . Wheel . | . . . . . . . Hover 8 | . . . . . 4 4 Flight . | . . . . . . . Utility 39 | 1 2 1 13 . 22 . Device 8 | . . . 3 . 5 . Storage 4 | 1 1 . . . 2 . Processor 6 | . . . 1 . 5 . Hackware . | . . . . . . . Protection 21 | . 1 1 9 . 10 . Artifact . | . . . . . . . Weapon 48 | 2 2 9 12 4 17 2 Energy Gun 16 | 2 1 4 6 . 3 . Energy Cannon 5 | . . . 3 . 2 . Ballistic Gun 11 | . 1 3 2 1 4 . Ballistic Cannon . | . . . . . . . Launcher 12 | . . 2 1 2 6 1 Special Weapon . | . . . . . . . Impact Weapon . | . . . . . . . Slashing Weapon 4 | . . . . 1 2 1 Piercing Weapon . | . . . . . . . Special Melee Weapon . | . . . . . . . Unidentified Prototypes 3 | . . . 1 . 2 . Parts Lost 25 | . 1 3 3 1 9 8 Power 3 | . . 1 . . 1 1 Propulsion 7 | . . . 1 . 2 4 Utility 8 | . . 1 . 1 5 1 Weapon 7 | . 1 1 2 . 1 2 Highest Loss Streak 8 | . 1 1 1 1 4 8 To Critical Strikes 1 | . . . . . . 1 Average Slot Usage (%) 94 | . 99 94 98 95 87 96 Engine 4 | . 5 . 8 11 . 9 Core 6 | . 8 13 2 . 8 . Treads 16 | . 28 28 21 22 2 . Hover 4 | . . . . . 13 17 Device 6 | . . . 9 6 9 18 Storage 11 | . 15 14 11 11 10 . Processor 7 | . . . 8 11 9 27 Protection 13 | . 12 8 14 11 15 8 Energy Gun 8 | . 17 14 6 . 7 . Energy Cannon 3 | . . . 7 11 1 . Ballistic Gun 7 | . 9 10 7 7 6 . Launcher 2 | . . 2 . 3 2 12 Peak Build Rating 40 | 6 11 13 26 25 40 34 Average Rating 23 | 4 9 11 20 23 34 32 On Entrance 15 | . 6 11 13 24 23 34 Naked Turns . | . . . . . . . Heaviest Build 128 | 13 93 93 117 108 128 22 Greatest Support 46 | 40 40 40 46 46 46 22 Greatest Overweight (x) 35 | . 2 2 2 2 35 1 Average Overweight (x) 2 | . 1 2 2 2 7 . Largest Inventory Capacity 25 | 8 25 25 25 25 25 5 Average Capacity 24 | 7 24 25 25 25 24 5 Most Carried 25 | 6 24 25 25 25 25 5 Average Carried 22 | 3 13 24 23 24 24 4 Final Capacity 25 | 8 25 25 25 25 5 5 Final Carried 25 | 6 24 25 25 25 5 . Class Distribution -------------------- 97% | Mutant Dominant Class ---------------- Mutant | -10/Materials Mutant | -10/Mines Mutant | -9/Materials Mutant | -9/Mines Mutant | -8/Materials Scout | -8/Garrison Resources | -11 -10 -10 -9 -9 -8 -8 ----------- Run | Yrd Mat Min Mat Min Mat Gar Matter Collected 2167 | 162 177 406 598 132 632 60 Remotely . | . . . . . . . Salvage Created 3852 | . 498 568 1597 172 887 130 Parts 249 | . 37 36 94 18 58 6 Haulers Intercepted 11 | . 2 . 4 . 5 . Recyclers Shooed 2 | . 1 . 1 . . . Parts Field Recycled . | . . . . . . . Retrieved Matter . | . . . . . . . Parts Self-Destructed . | . . . . . . . Prevented . | . . . . . . . Kills | -11 -10 -10 -9 -9 -8 -8 ------- Run | Yrd Mat Min Mat Min Mat Gar Combat Hostiles Destroyed 88 | . 10 15 29 8 21 5 Melee 1 | . . . . . 1 . Guns 49 | . 10 11 14 2 12 . Cannons 19 | . . . 13 3 3 . AOE 18 | . . 4 2 3 4 5 Classes Destroyed 15 | . 6 3 5 1 . . Worker 4 | . 1 1 1 1 . . Builder 3 | . . 1 1 . 1 . Tunneler 2 | . . 2 . . . . Hauler 11 | . 2 . 4 . 5 . Recycler 4 | . 1 2 1 . . . Mechanic 1 | . . . 1 . . . Operator 1 | . . . 1 . . . Watcher 3 | . 2 . 1 . . . Swarmer 29 | . 6 6 4 3 10 . Grunt 39 | . 4 10 15 . 5 5 Brawler 1 | . . . 1 . . . Duelist 2 | . . . 2 . . . Sentry 15 | . . . 7 2 6 . Demolisher 1 | . . . . 1 . . Assembled 3 | . . 1 . 2 . . Best Kill Streak 5 | . 4 5 4 4 4 3 Combat Bots Only 4 | . 4 3 4 3 4 3 Max Kills in Single Turn 3 | . 2 2 3 2 2 2 Gunslinging 1 | . 1 . . . 1 . Exploded 2 | . . 2 2 2 2 2 Melee 1 | . . . . . 1 . Uniques/NPCs Destroyed . | . . . . . . . Combat | -11 -10 -10 -9 -9 -8 -8 -------- Run | Yrd Mat Min Mat Min Mat Gar Hostile Shots Fired 581 | . 79 69 130 34 170 99 Missed 166 | . 22 21 34 13 35 41 Damage Taken 6168 | . 619 690 1452 445 2131 831 Core 1042 | . 111 104 242 29 384 172 Absorbed by Shields 47 | . . . . . . 47 Redirected to Shielding 19 | . . 11 8 . . . Core Remaining (%) 48 | 100 . 14 . 32 . . Volleys Fired 271 | . 54 42 78 14 76 7 Largest 2 | . 2 2 2 2 2 2 Hottest 150 | . 80 130 150 108 98 72 Shots Fired 504 | . 100 84 149 27 135 9 Gun 371 | . 100 70 88 10 103 . Cannon 96 | . . . 61 14 21 . Launcher 37 | . . 14 . 3 11 9 Special . | . . . . . . . Kinetic 163 | . 25 33 33 10 62 . Thermal 218 | . 54 37 69 14 44 . Explosive 37 | . . 14 . 3 11 9 Electromagnetic 86 | . 21 . 47 . 18 . Robot Hit Streak 28 | . 8 6 28 9 20 2 Robot Miss Streak 6 | . 5 5 6 3 3 1 Penetration Max . | . . . . . . . Secondary Targets 5 | . 2 . 1 . 2 . Max Gunslinging Chain 1 | . 1 . 1 . 1 . Shots Hit Robots 323 | . 56 41 99 17 103 7 Core Hits 195 | . 30 42 61 11 38 13 Critical Kills 1 | . . . . . 1 . Critical Parts Destroyed . | . . . . . . . Critical Strikes 4 | . 1 . . . 2 1 Meltdown 1 | . . . . . 1 . Corrupt 1 | . 1 . . . . . Sever 2 | . . . . . 1 1 Melee Attacks 7 | . . . . . 3 4 Impact . | . . . . . . . Slashing 7 | . . . . . 3 4 Piercing . | . . . . . . . Sneak Attacks . | . . . . . . . Combat Hostiles . | . . . . . . . Follow-up Attacks . | . . . . . . . Damage Inflicted 7305 | 7 637 1198 2074 562 2283 544 Guns 3363 | . 626 386 940 88 1323 . Cannons 1678 | . . . 997 225 456 . Explosions 1953 | . . 759 96 240 384 474 Melee 153 | . . . . . 83 70 Ramming 158 | 7 11 53 41 9 37 . Kinetic 1400 | . 118 172 266 88 756 . Thermal 2760 | . 362 214 1174 225 785 . Explosive 1857 | . . 759 . 240 384 474 Electromagnetic 977 | . 146 . 593 . 238 . Impact . | . . . . . . . Slashing 153 | . . . . . 83 70 Piercing . | . . . . . . . Highest Corruption 4 | . . . . . . 4 Average Corruption 2 | . . . . . . 2 Corruption Purged . | . . . . . . . Corruption Blocked . | . . . . . . . Overload Shots . | . . . . . . . Overflow Damage 71 | . . 1 5 32 33 . Projectiles 21 | . . . 5 . 16 . Explosions 50 | . . 1 . 32 17 . Melee . | . . . . . . . Knockbacks . | . . . . . . . Impact . | . . . . . . . Kinetic . | . . . . . . . Secondary . | . . . . . . . Self-Inflicted Damage 422 | . . 158 36 . 181 47 Shots 15 | . . 6 1 . 6 2 Rammed 24 | 2 2 6 7 1 6 . Targets Rammed 25 | 2 2 6 8 1 6 . Kicked . | . . . . . . . Crushed 1 | . . . 1 . . . Highest Temperature 614 | . 386 234 524 221 614 48 Average Temperature 128 | . 124 66 113 75 182 21 Received Heat Transfer 1995 | . 243 210 417 9 783 333 Effects 41 | . 3 1 7 1 29 . Shutdowns 6 | . 1 . 2 . 3 . Energy Bleed 8 | . 1 . . 1 6 . Interference 10 | . 1 1 2 . 6 . Matter Decay 4 | . . . 2 . 2 . Short Circuit 1 | . . . . . 1 . Damage (minor) 6 | . . . . . 6 . Damage (major) 4 | . . . . . 4 . Damage (core) 2 | . . . 1 . 1 . Siege Activations . | . . . . . . . Robots Corrupted 1 | . 1 . . . . . Combat Hostiles . | . . . . . . . Parts Fried 8 | . 3 . 3 . 2 . Impact Corruptions . | . . . . . . . Robots Melted 1 | . . . . . 1 . Combat Hostiles 1 | . . . . . 1 . Parts Melted 7 | . 1 . 3 . 3 . Heat Transferred 4725 | . 825 507 1728 333 1332 . Parts Sabotaged . | . . . . . . . Parts Stolen . | . . . . . . . Parts Stripped . | . . . . . . . Power Chain Reactions 1 | . . . 1 . . . Alert | -11 -10 -10 -9 -9 -8 -8 ------- Run | Yrd Mat Min Mat Min Mat Gar Peak Influence 593 | . 217 192 498 176 398 593 Initial 255 | . . . 61 176 . 255 Average 148 | . 73 59 291 44 134 420 Maximum Alert Level 2 | . 1 . 2 . 1 2 Low Security (%) 71 | 100 96 100 41 100 66 . Level 1 14 | . 3 . 9 . 33 30 Level 2 13 | . . . 48 . . 69 Level 3 . | . . . . . . . Level 4 . | . . . . . . . Level 5 . | . . . . . . . High Security . | . . . . . . . Max Security . | . . . . . . . Squads Dispatched 6 | . . . 4 . 2 . Investigation 3 | . . . 2 . 1 . Extermination . | . . . . . . . Reinforcement 3 | . . . 2 . 1 . Assault . | . . . . . . . Garrison . | . . . . . . . Intercept . | . . . . . . . Searches Triggered . | . . . . . . . Construction Impeded 1 | . . . 1 . . . Haulers Reinforced . | . . . . . . . Active Scanning Responses . | . . . . . . . Cargo Convoy Interrupts . | . . . . . . . Stealth | -11 -10 -10 -9 -9 -8 -8 --------- Run | Yrd Mat Min Mat Min Mat Gar Distress Signals 11 | . 3 . 6 . 2 . Communications Jammed . | . . . . . . . Distress Signals . | . . . . . . . Times Spotted 173 | . 22 18 52 26 34 21 Peak Tracking Total 15 | . 7 3 4 15 4 10 Tactical Retreats 17 | . 1 2 3 2 6 3 Traps | -11 -10 -10 -9 -9 -8 -8 ------- Run | Yrd Mat Min Mat Min Mat Gar Traps Triggered 5 | . . . 1 . . 4 Indirectly . | . . . . . . . Trap Hack Attempts . | . . . . . . . Triggered . | . . . . . . . Disarmed . | . . . . . . . Reprogrammed 6 | . . . . . 6 . Reused 5 | . . . . . 5 . Traps Extracted . | . . . . . . . Installed . | . . . . . . . Triggered 7 | . 1 . . . 6 . Machines | -11 -10 -10 -9 -9 -8 -8 ---------- Run | Yrd Mat Min Mat Min Mat Gar Machines Disabled 5 | . . . 1 . 1 3 Max in Single Turn 1 | . . . 1 . 1 1 Garrison Relay 2 | . . . . . . 2 Machines Repaired . | . . . . . . . Machines Dismantled . | . . . . . . . Machines Sabotaged . | . . . . . . . Overloaded Fab Kills . | . . . . . . . Hacking | -11 -10 -10 -9 -9 -8 -8 --------- Run | Yrd Mat Min Mat Min Mat Gar Machines Accessed 18 | . 4 . 6 . 6 2 Terminals 15 | . 4 . 5 . 4 2 Fabricators . | . . . . . . . Repair Stations . | . . . . . . . Recycling Units . | . . . . . . . Scanalyzers 2 | . . . 1 . 1 . Garrison Access 1 | . . . . . 1 . Total Hacks 41 | . 13 . 13 . 12 3 Successful 13 | . 2 . 5 . 6 . Failed 27 | . 11 . 7 . 6 3 Catastrophic 4 | . . . 1 . 2 1 Database Lockouts 1 | . . . 1 . . . Manual 26 | . 10 . 11 . 5 . Terminals 35 | . 13 . 10 . 9 3 Fabricators . | . . . . . . . Repair Stations . | . . . . . . . Recycling Units . | . . . . . . . Scanalyzers 5 | . . . 3 . 2 . Garrison Access 1 | . . . . . 1 . Terminal Hacks 8 | . 2 . 3 . 3 . Robot Analysis 3 | . . . 2 . 1 . Branch Access Points 1 | . 1 . . . . . Emergency Access Points 1 | . . . 1 . . . Locate Traps 1 | . 1 . . . . . Reprogram Traps 1 | . . . . . 1 . Zone Layout 1 | . . . . . 1 . Fabricator Hacks . | . . . . . . . Repair Station Hacks . | . . . . . . . Recycling Unit Hacks . | . . . . . . . Scanalyzer 4 | . . . 2 . 2 . Insert Component 2 | . . . 1 . 1 . Analyze 2 | . . . 1 . 1 . Garrison Access Hacks 1 | . . . . . 1 . Unlock Access 1 | . . . . . 1 . Unauthorized Hacks . | . . . . . . . Terminals . | . . . . . . . Fabricators . | . . . . . . . Repair Stations . | . . . . . . . Recycling Units . | . . . . . . . Scanalyzers . | . . . . . . . Garrison Access . | . . . . . . . Data Cores Recovered . | . . . . . . . Used . | . . . . . . . Hacking Detections 12 | . 4 . 5 . 2 1 Full Trace Events 4 | . 1 . 2 . 1 . Feedback Events . | . . . . . . . Feedback Blocked . | . . . . . . . Robot Schematics Acquired . | . . . . . . . Robots Built . | . . . . . . . Authchips . | . . . . . . . Time . | . . . . . . . Total Robot Build Rating . | . . . . . . . Part Schematics Acquired 1 | . . . 1 . . . Parts Built . | . . . . . . . Authchips . | . . . . . . . Time . | . . . . . . . Total Part Build Rating . | . . . . . . . Parts Repaired . | . . . . . . . Time . | . . . . . . . Parts Recycled . | . . . . . . . Recycled Matter . | . . . . . . . Retrieved Matter . | . . . . . . . Retrieved Components . | . . . . . . . Parts Scanalyzed 2 | . . . 1 . 1 . Part Schematics Acquired 1 | . . . 1 . . . Parts Damaged . | . . . . . . . Bothacking | -11 -10 -10 -9 -9 -8 -8 ------------ Run | Yrd Mat Min Mat Min Mat Gar Used RIF Installer . | . . . . . . . Robots Hacked . | . . . . . . . Non-combat . | . . . . . . . Combat . | . . . . . . . Robot Hacks Applied . | . . . . . . . Relay Couplers Released 8 | . . . . . . 8 Machine Destruction 8 | . . . . . . 8 Fabnet Peak Effective % . | . . . . . . . Robots Rewired . | . . . . . . . Allies Hacked . | . . . . . . . Hacks Repelled . | . . . . . . . Allies | -11 -10 -10 -9 -9 -8 -8 -------- Run | Yrd Mat Min Mat Min Mat Gar Total Allies 4 | . . 4 . . . . Largest Group 3 | . . 3 . . . . Highest-Rated Group 40 | . . 40 . . . . Highest-Rated Ally 31 | . . 31 . . . . Total Orders . | . . . . . . . Ally Attacks . | . . . . . . . Total Damage . | . . . . . . . Kills . | . . . . . . . Allies Corrupted . | . . . . . . . Allies Melted . | . . . . . . . Intel | -11 -10 -10 -9 -9 -8 -8 ------- Run | Yrd Mat Min Mat Min Mat Gar Robot Analysis Total 3 | . . . 2 . 1 . Derelict Logs Recovered 2 | . . 1 . 1 . . Drone Launches . | . . . . . . . Drone Recoveries . | . . . . . . . Exploration | -11 -10 -10 -9 -9 -8 -8 ------------- Run | Yrd Mat Min Mat Min Mat Gar Turns Passed 16495 | 90 1496 2883 4248 2189 5269 320 Spaces Moved 4445 | 51 414 835 1161 586 991 407 Core 43 | 8 . . . . 35 . Treads 3137 | 43 414 835 1161 586 98 . Legs . | . . . . . . . Wheels . | . . . . . . . Hover 1265 | . . . . . 858 407 Flight . | . . . . . . . Fastest Speed 50 | 50 160 320 320 320 56 56 Average Speed 329 | 142 315 320 320 320 479 56 Slowest Speed 1800 | 160 320 320 320 320 1800 120 Overloaded Moves . | . . . . . . . Propulsion Burnouts . | . . . . . . . Robots Hopped . | . . . . . . . Cave-ins Triggered . | . . . . . . . Exploration Rate (%) 55 | 3 49 95 66 66 64 42 Regions Visited 6 Branch Regions 2 Pre-discovered Areas 2 | . . 1 . 1 . . Known Exits Taken 2 | . 1 . . . 1 . Unknown Exits Taken 4 | 1 . 1 1 1 . . Scrap Searched 2 | . . 1 . 1 . . Spaces Dug 1 | . . . . 1 . . Terrain Destroyed 284 | . . 98 23 23 85 55 Melee . | . . . . . . . Projectile 29 | . . . 20 5 4 . AOE 255 | . . 98 3 18 81 55 Terrain Rammed . | . . . . . . . Walls Destroyed . | . . . . . . . Machines Disabled . | . . . . . . . Actions | -11 -10 -10 -9 -9 -8 -8 --------- Run | Yrd Mat Min Mat Min Mat Gar Total 5785 | 64 504 960 1545 871 1357 484 Wait 700 | . 11 51 188 263 176 11 Move 4439 | 50 413 834 1160 585 990 407 Hop . | . . . . . . . Pick Up 84 | 6 13 7 29 2 25 2 Fast Attach 35 | 6 3 2 12 . 12 . Attach 33 | . 1 3 8 . 16 5 Detach 14 | . 2 1 8 . 3 . Swap 52 | . 5 7 15 4 19 2 Drop 81 | . . 7 39 2 31 2 Fire 271 | . 54 42 78 14 76 7 Melee 7 | . . . . . 3 4 Ram 5 | . . . . . 5 . Kick . | . . . . . . . Crush 20 | 2 2 6 8 1 1 . Escape Stasis 44 | . . . . . . 44 Rewire . | . . . . . . . Trap . | . . . . . . . Miscellaneous . | . . . . . . . Route ------- -11/Scrapyard -10/Materials (discovered 3 exits: *Mat / *Min x2) -10/Mines (discovered 2 exits: *Mat x2) -9/Materials (discovered 3 exits: *Mat x2 / [*Min]) -9/Mines (discovered 3 exits: *Mat / [*Exi] / [*Zio]) -8/Materials (discovered 3 exits: [*Fac] / [*Sto] / Gar) -8/Garrison (discovered 1 exit: [*Mat]) History --------- Turn | Location | Event 5 | -11/Scrapyard | Discovered new exit (range 14) 91 | -11/Scrapyard | Entered Materials 304 | -10/Materials | Build established: Mutant 613 | -10/Materials | Identified exit to Mines 684 | -10/Materials | Discovered new exit (range 16) 1587 | -10/Materials | Entered Mines 1787 | -10/Mines | Core integrity fell below 50% 1957 | -10/Mines | Found a hidden stash of uninstalled traps 1989 | -10/Mines | Discovered new exit (range 9) 1992 | -10/Mines | Received a Mining Laser from a helpful Derelict 2085 | -10/Mines | Learned location of Storage (-8) 2401 | -10/Mines | Received a Rocket Launcher from a helpful Derelict 2710 | -10/Mines | Discovered new exit (range 9) 3467 | -10/Mines | Assisted by bots powering up and referring to "LRC-V3" 3581 | -10/Mines | Excavation squad dispatched 3581 | -10/Mines | A large section of the Mines collapsed 3736 | -10/Mines | Core integrity fell below 20% 4470 | -10/Mines | Entered Materials 4470 | -9/Materials | Evolved 2 slots: Utility x2 4681 | -9/Materials | Discovered new exit (range 16) 5669 | -9/Materials | Discovered new exit (range 9) 6062 | -9/Materials | Central database locked down 6375 | -9/Materials | Core integrity fell below 50% 7685 | -9/Materials | Discovered new exit (range 3) 8718 | -9/Materials | Entered Mines 8738 | -9/Mines | Learned 2 Materials zone layouts 8744 | -9/Mines | Discovered new exit (range 6) 9078 | -9/Mines | A Derelict revealed a hidden shortcut to a safe place 9125 | -9/Mines | Deemed a non-threat by the Exiles lab entrance 9128 | -9/Mines | Discovered new exit (range 5) 10035 | -9/Mines | Assembled infested the area 10907 | -9/Mines | Entered Materials 10907 | -8/Materials | Evolved 2 slots: Utility x2 11563 | -8/Materials | Lost 4 parts (2n1u1w) 12193 | -8/Materials | Core integrity fell below 50% 13991 | -8/Materials | Discovered new exit (range 12) 14678 | -8/Materials | Discovered new exit (range 11) 16176 | -8/Materials | Identified exit to Garrison 16176 | -8/Materials | Entered Garrison 16214 | -8/Garrison | Triggered checkpoint 16270 | -8/Garrison | Triggered checkpoint 16274 | -8/Garrison | Triggered checkpoint 16449 | -8/Garrison | Build established: Scout 16462 | -8/Garrison | Discovered new exit (range 11) 16480 | -8/Garrison | Garrison Relay disabled 16486 | -8/Garrison | Core integrity fell below 20% 16496 | -8/Garrison | Destroyed by P-60 Hacker with Shock Rifle Last Messages --------------- 16445_ Field strength at 23. 16446_ Field strength at 12. 16447_ Stasis field depleted. 16452_ Airjet destroyed. 16456_ Critical hit (Destroy). 16456_ Lgt. Deuterium Engine destroyed. 16458_ Imp. Grenade Launcher destroyed. 16462_ EXIT=FOUND 16477_ Lyr. Light Armor Plating destroyed. 16480_ Garrison Relay disabled. 16480_ Relay Coupler [NC] tumbles out of relay unit. 16480_ Relay Coupler [Specialist] tumbles out of relay unit. 16480_ Relay Coupler [Swarmer] tumbles out of relay unit. 16480_ Relay Coupler [Hunter] tumbles out of relay unit. 16489_ Airjet destroyed. 16493_ G-47 Trooper Aluminum Leg severed. Map ----- +----------------------------------------------------+ | | | | | ???????????????????????????????????????????? | | ???????????????????????????????????????????? | | ???????????????????????????????????????????? | | ???????????????????????????????????????????? | | ???????????????????????????????????????????? | | ???????????????????????????????????????????? | | ???????????????????????????????????????????? | | ???????????????????????????????????????????? | | ???????????????????????????????????????????? | | ???????????????????????????????????????????? | | ????????######?????????????????????????????? | | ????????#"# #?????????????????????????????? | | ????????#"! #?????????????????????????????? | | ????????# ! #?????????????????????????????? | | ????????#"!! #?????????????????????????????? | | ????????#"# #?????????????????????????????? | | ????????### ###???????????????????????????? | | ??????????# #???????????????????????????? | | ??????????# #???????????????????????????? | | ??????????# #???????????????????????????? | | ??????????# ###???????????????????????????? | | ??????????# #?????????????????????????????? | | ??????????# #######################???????? | | ??????????# gp @g #???????? | | ??????????# g gg #???????? | | ??????????#/g######## < ######### #???????? | | ????????????????????# #???????# #???????? | | ????????????????????##+##???????# #???????? | | ???????????????????????#????????# #???????? | | ????????????????????????????????# #???????? | | ????????????????????????????????# #???????? | | ????????????????????????????????# #???????? | | ????????????????????????????????# #???????? | | ????????????????????????????????# #???????? | | ????????????????????????????????# #???????? | | ????????????????????????????????# #???????? | | ????????????????????????????????# #???????? | | ????????????????????????????????# #???????? | | ????????????????????????????????# #???????? | | ????????????????????????????????# #???????? | | ????????????????????????????????# #???????? | | ????????????????????????????????# #???????? | | ????????????????????????????????# #### #### | | ????????????????????????????????# # | | ????????????????????????????????+ | | ????????????????????????????????+ | | ????????????????????????????????##### # | | ????????????????????????????????????? ### | +----------------------------------------------------+ Best States ------------- Heat Dissipation 52 Energy Generation 14 Energy Capacity 310 Matter Stores 300 Matter Capacity 300 Sight Range 20 Robot Scan Range 15 Terrain Scan Density 10 Additional Mass Support 6 Armor Coverage 825 Power Shielding 33 Evasion (%) 53 Targeting Accuracy 16 Recoil Reduction 2 Authchip Count 1 Item Schematics ----------------- Imp. Grenade Launcher | -9/Materials | Scanalyzed Robot Schematics ------------------ None Fabricated ------------ Nothing Alien Tech Used ----------------- None Achievements -------------- None Challenges ------------ None Game ------ Seed RingImpulseScreen Manual? 0 Play Time 01:03:02 Cumulative 42.1 hours Start 2024.11.29 @ 17:59:13 End 2024.11.29 @ 19:01:01 Sessions 1 Manual Loads 0 Difficulty Rogue Special Mode None Game No. 56 Rogue 56 Adventurer 0 Explorer 0 Win Type - Total 1 Types 1/0/0/0/0/0/0/0/0 Lore% 16 Gallery% 30 Achievement% 30 Wizard Run 0 Options --------- Layout 2 ASCII 0 Keyboard 1 Movement Arrows Keybinds 0 Fullscreen 1 Font 24/Proggy Map View 50x44 Zoom Use 0% Tactical HUD 1 Map Filters NONE Filters NONE Steam 1 RUN: ecd9d50d-142c-404c-8b22-f602305d5e06